fUST/lending_fUST_20241110
["ID","MTS","AMOUNT","RATE_DAILY","PERIOD"]
[341751269,1731196241702,-435.070926,0.00031694,7]
[341751270,1731196241715,-435.070926,0.00031694,7]
[341751271,1731196241724,-435.070926,0.00031694,7]
[341751272,1731196241733,-435.070926,0.00031694,7]
[341751273,1731196241743,-435.070926,0.00031694,7]
[341751274,1731196241752,-435.070926,0.00031694,7]
[341751275,1731196241761,-435.070926,0.00031694,7]
[341751276,1731196241771,-435.070926,0.00031694,7]
[341751277,1731196241780,-435.070926,0.00031694,7]
[341751278,1731196241790,-435.070926,0.00031694,7]
[341751279,1731196241799,-435.070926,0.00031694,7]
[341751280,1731196241808,-435.070926,0.00031694,7]
[341751281,1731196241817,-435.070926,0.00031694,7]
[341751282,1731196241826,-435.070934,0.00031694,7]
[341751283,1731196241838,-465.258182,0.00031694,28]
[341751284,1731196241849,-151.0,0.00031694,7]
[341751285,1731196241859,-282.323668,0.00031694,7]
[341751286,1731196241868,-151.0,0.00031694,7]
[341751287,1731196241878,-151.0,0.00031694,7]
[341751288,1731196241887,-151.0,0.00031694,7]
[341751289,1731196241897,-151.0,0.00031694,7]
[341751290,1731196241906,-151.0,0.00031694,7]
[341751291,1731196241916,-151.0,0.00031694,7]
[341751292,1731196241926,-151.0,0.00031694,7]
[341751293,1731196241935,-151.0,0.00031694,7]
[341751294,1731196241944,-151.0,0.00031694,7]
[341751295,1731196241954,-151.0,0.00031694,7]
[341751296,1731196241965,-151.0,0.00031694,7]
[341751297,1731196241975,-153.491646,0.00031694,7]
[341751298,1731196241984,-151.0,0.00031694,3]
[341751299,1731196241993,-151.0,0.00031694,3]
[341751300,1731196242002,-151.0,0.00031694,3]
[341751301,1731196242011,-151.0,0.00031694,3]
[341751302,1731196242020,-151.0,0.00031694,3]
[341751303,1731196242029,-263.070447,0.00031694,3]
[341751304,1731196242039,-151.0,0.00031694,7]
[341751305,1731196242048,-151.0,0.00031694,7]
[341751306,1731196242058,-151.0,0.00031694,7]
[341751307,1731196242067,-343.37045171,0.00031694,2]
[341751308,1731196242077,-323.49889509,0.00031694,2]
[341751309,1731196242087,-712.24438771,0.00031695,7]
[341751310,1731196242096,-712.24438771,0.00031695,7]
[341751311,1731196242106,-1085373.36490675,0.00031695,10]
[341751349,1731196246353,-180.02125545,0.00029818,2]
[341751351,1731196246364,-2365.49907041,0.00031056,2]
[341751352,1731196246374,-1380.0352285,0.00031236,2]
[341751406,1731196451033,166.779357,0.00013973,2]
[341751418,1731196834950,607.63888889,0.00020844,2]
[341751423,1731197215175,-386.4974877,0.00022224,2]
[341751438,1731197291369,167.070024,0.00013973,2]
[341751439,1731197345083,-607.63888889,0.00021304,2]
[341751440,1731197345105,-167.070024,0.00023435,2]
[341751464,1731197432352,-299.00663179,0.00024983,2]
[341751550,1731197438625,-200.99336821,0.00024983,2]
[341751551,1731197438635,-607.63888889,0.00024983,2]
[341751552,1731197438644,-154.0,0.00025,2]
[341751553,1731197438654,-500.0,0.00026298,2]
[341751554,1731197438663,-389.94790583,0.00027613,5]
[341751555,1731197438673,-614.4110913,0.00028936,2]
[341751556,1731197438683,-253.824272,0.00029781,30]
[341751557,1731197438692,-153.0,0.00029781,30]
[341751558,1731197438702,-153.0,0.00029781,30]
[341751559,1731197438712,-153.0,0.00029781,30]
[341751560,1731197438721,-300.0,0.00029999,2]
[341751561,1731197438734,-300.0,0.00029999,2]
[341751562,1731197438746,-3539.5,0.0003,7]
[341751563,1731197438768,-305.9382545,0.00030055,30]
[341751564,1731197438778,-500.0,0.00030136,2]
[341751565,1731197438788,-500.0,0.00030136,2]
[341751566,1731197438797,-348.56498043,0.00030136,2]
[341751567,1731197438806,-500.0,0.00030136,2]
[341751568,1731197438816,-497.80040001,0.0003041,2]
[341751569,1731197438826,-500.0,0.0003041,2]
[341751570,1731197438835,-500.0,0.0003041,2]
[341751571,1731197438845,-500.0,0.00030437,7]
[341751572,1731197438855,-150.0,0.00030597,2]
[341751573,1731197438864,-1130.0,0.00030597,2]
[341751574,1731197438874,-529.0,0.00030597,2]
[341751575,1731197438883,-2392.0,0.00030597,2]
[341751576,1731197438892,-203.75,0.00030684,2]
[341751577,1731197438901,-328.67,0.00030684,2]
[341751578,1731197438910,-153.0,0.0003074,30]
[341751579,1731197438920,-153.0,0.0003074,30]
[341751580,1731197438929,-153.0,0.0003074,30]
[341751581,1731197438938,-153.0,0.00030877,30]
[341751582,1731197438947,-153.0,0.00030877,30]
[341751583,1731197438956,-153.0,0.00030877,30]
[341751584,1731197438965,-153.0,0.00030877,30]
[341751585,1731197438974,-422.8718496,0.00030878,30]
[341751586,1731197438984,-156.171,0.0003091,2]
[341751587,1731197438993,-560.19,0.00030983,2]
[341751588,1731197439005,-730.65,0.00030984,2]
[341751589,1731197439015,-500.0,0.00030984,2]
[341751590,1731197439024,-500.0,0.00030999,2]
[341751591,1731197439033,-560.19,0.00031257,2]
[341751592,1731197439042,-730.65,0.00031258,2]
[341751593,1731197439051,-223.9,0.000315,31]
[341751594,1731197439060,-223.9,0.000315,31]
[341751595,1731197439070,-223.9,0.000315,31]
[341751597,1731197439079,-223.9,0.000315,31]
[341751599,1731197439088,-223.9,0.000315,31]
[341751600,1731197439097,-223.9,0.000315,31]
[341751601,1731197439107,-223.9,0.000315,31]
[341751603,1731197439116,-223.9,0.000315,31]
[341751605,1731197439125,-223.9,0.000315,31]
[341751607,1731197439134,-223.9,0.000315,31]
[341751608,1731197439144,-223.9,0.000315,31]
[341751609,1731197439153,-223.9,0.000315,31]
[341751611,1731197439162,-714.55774784,0.00031508,2]
[341751612,1731197439172,-714.55774784,0.00031523,2]
[341751613,1731197439182,-560.19,0.00031531,2]
[341751614,1731197439191,-730.65,0.00031532,2]
[341751615,1731197439200,-500.0,0.00031533,10]
[341751616,1731197439209,-714.55774784,0.00031537,2]
[341751617,1731197439218,-714.55774784,0.00031551,2]
[341751618,1731197439227,-714.55774784,0.00031565,2]
[341751619,1731197439236,-714.55774784,0.0003158,2]
[341751620,1731197439245,-1000.0,0.00031594,2]
[341751621,1731197439256,-15689.02,0.00031594,3]
[341751622,1731197439265,-474.82959181,0.00031594,7]
[341751623,1731197439274,-714.55774784,0.00031594,2]
[341751624,1731197439283,-383.15253863,0.00031599,2]
[341751625,1731197439292,-500.0,0.00031599,2]
[341751626,1731197439302,-500.0,0.00031599,2]
[341751627,1731197439312,-500.0,0.00031599,2]
[341751628,1731197439321,-500.0,0.00031599,2]
[341751629,1731197439330,-500.0,0.00031599,120]
[341751630,1731197439339,-529.37999498,0.00031599,2]
[341751631,1731197439348,-500.0,0.000316,36]
[341751632,1731197439357,-500.0,0.00031673,5]
[341751633,1731197439367,-502.50620464,0.00031673,5]
[341751634,1731197439377,-500.0,0.00031673,5]
[341751635,1731197439386,-557.17522074,0.00031673,5]
[341751636,1731197439395,-500.0,0.00031673,5]
[341751637,1731197439404,-500.0,0.00031673,5]
[341751638,1731197439413,-500.60418354,0.00031673,5]
[341751639,1731197439422,-501.4711944,0.00031673,5]
[341751640,1731197439431,-500.0,0.00031673,2]
[341751641,1731197439442,-500.0,0.00031673,5]
[341751642,1731197439459,-190.656,0.00031678,2]
[341751643,1731197439472,-150.0,0.00031678,2]
[341751644,1731197439485,-207.64,0.00031684,10]
[341751645,1731197439494,-285.37,0.00031684,10]
[341751646,1731197439506,-237.81,0.00031684,10]
[341751647,1731197439516,-172.15348637,0.00031693,2]
[341751648,1731197439526,-534.37107555,0.00031693,2]
[341751649,1731197439535,-500.0,0.00031693,2]
[341751650,1731197439545,-500.0,0.00031693,2]
[341751651,1731197439554,-500.0,0.00031693,2]
[341751652,1731197439565,-322.91629347,0.00031693,2]
[341751653,1731197439575,-582.30470899,0.00031693,2]
[341751654,1731197439585,-500.0,0.00031693,2]
[341751655,1731197439596,-289.18984276,0.00031693,2]
[341751656,1731197439605,-252.83959097,0.00031693,2]
[341751657,1731197439615,-500.0,0.00031693,2]
[341751658,1731197439625,-500.0,0.00031693,2]
[341751659,1731197439635,-500.0,0.00031693,2]
[341751660,1731197439645,-500.0,0.00031693,2]
[341751661,1731197439654,-613.46701905,0.00031693,2]
[341751662,1731197439664,-500.0,0.00031693,2]
[341751663,1731197439673,-151.0,0.00031693,7]
[341751664,1731197439682,-151.0,0.00031693,7]
[341751665,1731197439692,-152.675519,0.00031693,7]
[341751666,1731197439701,-151.0,0.00031693,7]
[341751667,1731197439711,-151.0,0.00031693,7]
[341751668,1731197439721,-151.0,0.00031693,7]
[341751669,1731197439730,-151.0,0.00031693,7]
[341751670,1731197439739,-151.0,0.00031693,7]
[341751671,1731197439750,-151.0,0.00031693,7]
[341751672,1731197439760,-151.0,0.00031693,7]
[341751673,1731197439769,-151.0,0.00031693,7]
[341751674,1731197439778,-181.239007,0.00031693,7]
[341751675,1731197439787,-151.0,0.00031693,7]
[341751676,1731197439796,-151.0,0.00031693,7]
[341751677,1731197439805,-151.0,0.00031693,7]
[341751678,1731197439815,-288.97883,0.00031693,7]
[341751679,1731197439824,-151.0,0.00031693,7]
[341751680,1731197439834,-151.0,0.00031693,2]
[341751681,1731197439843,-151.0,0.00031693,2]
[341751682,1731197439853,-151.0,0.00031693,2]
[341751683,1731197439862,-151.0,0.00031693,2]
[341751684,1731197439872,-151.0,0.00031693,2]
[341751685,1731197439881,-155.329542,0.00031693,2]
[341751686,1731197439891,-543.838658,0.00031693,7]
[341751687,1731197439900,-543.838658,0.00031693,7]
[341751688,1731197439910,-543.838658,0.00031693,7]
[341751689,1731197439920,-543.838658,0.00031693,7]
[341751690,1731197439930,-543.838658,0.00031693,7]
[341751691,1731197439939,-543.838658,0.00031693,7]
[341751692,1731197439949,-543.838658,0.00031693,7]
[341751693,1731197439958,-543.838658,0.00031693,7]
[341751694,1731197439967,-543.838658,0.00031693,7]
[341751695,1731197439977,-543.838658,0.00031693,7]
[341751696,1731197439987,-543.838658,0.00031693,7]
[341751697,1731197439996,-543.838658,0.00031693,7]
[341751698,1731197440010,-543.838658,0.00031693,7]
[341751699,1731197440020,-543.838658,0.00031693,7]
[341751700,1731197440029,-543.838658,0.00031693,7]
[341751701,1731197440039,-543.838658,0.00031693,7]
[341751702,1731197440048,-543.838658,0.00031693,7]
[341751703,1731197440058,-543.838658,0.00031693,7]
[341751704,1731197440068,-543.838658,0.00031693,7]
[341751705,1731197440077,-543.838648,0.00031693,7]
[341751706,1731197440087,-151.0,0.00031693,7]
[341751707,1731197440096,-151.0,0.00031693,7]
[341751708,1731197440108,-151.0,0.00031693,7]
[341751709,1731197440117,-151.0,0.00031693,7]
[341751710,1731197440127,-151.0,0.00031693,7]
[341751711,1731197440136,-151.0,0.00031693,7]
[341751712,1731197440145,-178.868406,0.00031693,7]
[341751713,1731197440154,-151.0,0.00031693,7]
[341751714,1731197440164,-619.85,0.00031693,2]
[341751715,1731197440174,-3544.52,0.00031693,120]
[341751716,1731197440183,-343.37045171,0.00031693,2]
[341751717,1731197440192,-323.49889509,0.00031693,2]
[341751718,1731197440202,-474.82959181,0.00031694,7]
[341751719,1731197440212,-474.82959181,0.00031694,7]
[341751720,1731197440221,-1056245.48783477,0.00031694,10]
[341751748,1731197443781,-173.076,0.00030856,2]
[341751749,1731197443791,-443.54815445,0.00031673,5]
[341751762,1731198013878,607.63888889,0.00020844,2]
[341751763,1731198167355,166.429028,0.00013973,2]
[341751766,1731198407121,-176.43408905,0.00021563,2]
[341751767,1731198524776,3201.0,0.00020377,2]
[341751768,1731198558307,-607.63888889,0.00021084,2]
[341751769,1731198558327,-213.05451911,0.00021702,2]
[341751770,1731198558349,-166.429028,0.00022174,2]
[341751771,1731198558372,-256.81119086,0.00022562,2]
[341751772,1731198558393,-158.76799742,0.00023,2]
[341751773,1731198558415,-164.0,0.00025,2]
[341751774,1731198558435,-1837.70922321,0.0002509,2]
[341751775,1731198558456,-164.0,0.0002589,2]
[341751776,1731198558477,-300.0,0.00026449,2]
[341751777,1731198558498,-300.0,0.00026449,2]
[341751778,1731198558519,-3183.97103683,0.0002645,2]
[341751802,1731198632552,-607.63888889,0.00022562,2]
[341751803,1731198632562,-79.08669642,0.0002645,2]
[341751805,1731198632632,-8858.46324615,0.0002645,2]
[341751807,1731198632641,-300.0,0.00026574,2]
[341751808,1731198632651,-420.0,0.00028742,2]
[341751810,1731198632660,-153.0,0.00028822,30]
[341751812,1731198632674,-152.0,0.00029244,2]
[341751814,1731198632683,-709.96776493,0.000299,2]
[341751815,1731198632692,-15401.93217904,0.0003,30]
[341751816,1731198632701,-869.79573578,0.0003,2]
[341751818,1731198632711,-500.0,0.00030136,2]
[341751819,1731198632720,-500.0,0.00030136,2]
[341751820,1731198632730,-500.0,0.00030136,2]
[341751821,1731198632739,-500.0,0.00030136,2]
[341751822,1731198632748,-500.0,0.00030136,2]
[341751823,1731198632757,-728.22,0.00030136,2]
[341751824,1731198632766,-500.0,0.00030136,2]
[341751825,1731198632776,-500.0,0.00030136,2]
[341751826,1731198632785,-500.0,0.00030136,2]
[341751827,1731198632795,-182.8,0.00030136,2]
[341751828,1731198632805,-500.0,0.00030136,2]
[341751829,1731198632814,-500.0,0.00030136,2]
[341751830,1731198632823,-500.0,0.00030136,2]
[341751831,1731198632832,-554.42,0.00030136,2]
[341751832,1731198632841,-500.0,0.00030136,120]
[341751833,1731198632851,-709.96776489,0.00030142,2]
[341751834,1731198632860,-3644.9,0.00030179,30]
[341751835,1731198632869,-156.375,0.0003028,2]
[341751837,1731198632879,-166.429028,0.00030374,2]
[341751838,1731198632889,-709.96776489,0.00030385,2]
[341751839,1731198632897,-500.0,0.0003041,2]
[341751841,1731198632906,-500.0,0.0003041,2]
[341751843,1731198632917,-500.0,0.0003041,2]
[341751845,1731198632926,-500.0,0.0003041,2]
[341751847,1731198632935,-500.0,0.0003041,2]
[341751848,1731198632944,-728.22,0.0003041,2]
[341751850,1731198632954,-638.9790282,0.0003041,2]
[341751852,1731198632963,-500.0,0.0003041,2]
[341751854,1731198632973,-500.0,0.0003041,2]
[341751855,1731198632982,-500.0,0.0003041,2]
[341751856,1731198632991,-500.0,0.0003041,120]
[341751857,1731198633002,-400.0,0.00030545,3]
[341751858,1731198633015,-500.0,0.00030605,3]
[341751859,1731198633024,-709.96776489,0.00030627,2]
[341751860,1731198633034,-513.64,0.00030684,2]
[341751861,1731198633042,-385.1140861,0.00030684,2]
[341751862,1731198633053,-500.0,0.00030684,2]
[341751863,1731198633062,-500.0,0.00030684,2]
[341751864,1731198633071,-728.22,0.00030684,2]
[341751865,1731198633080,-500.0,0.00030684,2]
[341751866,1731198633091,-500.0,0.00030684,2]
[341751867,1731198633101,-500.0,0.00030684,120]
[341751868,1731198633110,-500.0,0.00030841,3]
[341751869,1731198633119,-709.96776489,0.0003087,2]
[341751870,1731198633129,-211.3465353,0.00030877,30]
[341751871,1731198633138,-500.0,0.00030958,2]
[341751872,1731198633147,-728.22,0.00030958,2]
[341751873,1731198633157,-500.0,0.00030958,2]
[341751874,1731198633167,-500.0,0.00030958,120]
[341751875,1731198633177,-178.25193406,0.00030982,2]
[341751876,1731198633186,-500.0,0.00030982,2]
[341751877,1731198633195,-500.0,0.00030983,2]
[341751878,1731198633205,-500.0,0.00030983,2]
[341751879,1731198633214,-500.0,0.00030983,2]
[341751880,1731198633223,-431.98,0.00030983,2]
[341751881,1731198633233,-319.98,0.0003099,10]
[341751882,1731198633242,-319.98,0.0003099,10]
[341751883,1731198633251,-213.32,0.0003099,10]
[341751884,1731198633260,-1660.69309578,0.00031,2]
[341751911,1731198638576,-607.63888889,0.0002645,2]
[341751913,1731198638585,-178.4,0.00030136,2]
[341751915,1731198638595,-214.09061154,0.00030385,7]
[341751926,1731198638687,-296.00748375,0.00030385,7]
[341751928,1731198638697,-177.77,0.0003099,10]
[341751930,1731198638706,-80829.15690421,0.00031,2]
[341751932,1731198638715,-587.0,0.00031087,2]
[341751934,1731198638725,-709.96776489,0.00031112,2]
[341751936,1731198638734,-500.0,0.00031133,3]
[341751938,1731198638743,-185.14189216,0.00031199,2]
[341751940,1731198638752,-392.458255,0.00031199,2]
[341751942,1731198638761,-216.67463556,0.00031199,2]
[341751944,1731198638771,-500.0,0.00031199,2]
[341751946,1731198638780,-500.0,0.00031199,2]
[341751948,1731198638790,-346.67848391,0.00031199,2]
[341751950,1731198638799,-99998.999999,0.000312,2]
[341751952,1731198638808,-500.0,0.00031232,2]
[341751954,1731198638817,-728.22,0.00031232,2]
[341751956,1731198638826,-500.0,0.00031232,2]
[341751958,1731198638835,-500.0,0.00031232,120]
[341751960,1731198638845,-500.0,0.00031257,2]
[341751962,1731198638854,-500.0,0.00031257,2]
[341751964,1731198638863,-160.0,0.00031286,3]
[341751966,1731198638872,-161.54927361,0.00031286,5]
[341751968,1731198638881,-156.353,0.0003129,120]
[341751970,1731198638890,-709.96776489,0.00031355,2]
[341751972,1731198638899,-500.0,0.00031422,3]
[341751974,1731198638908,-201.56,0.000315,31]
[341751976,1731198638917,-201.56,0.000315,31]
[341751978,1731198638926,-201.56,0.000315,31]
[341751980,1731198638934,-201.56,0.000315,31]
[341751982,1731198638943,-201.56,0.000315,31]
[341751984,1731198638952,-201.56,0.000315,31]
[341751985,1731198638961,-201.56,0.000315,31]
[341751987,1731198638971,-201.56,0.000315,31]
[341751990,1731198638979,-201.56,0.000315,31]
[341751992,1731198638988,-201.56,0.000315,31]
[341751993,1731198638997,-201.56,0.000315,31]
[341751995,1731198639010,-201.56,0.000315,31]
[341751998,1731198639019,-500.0,0.00031506,2]
[341752000,1731198639028,-728.22,0.00031506,2]
[341752002,1731198639037,-500.0,0.00031506,2]
[341752003,1731198639046,-500.0,0.00031506,120]
[341752006,1731198639055,-500.0,0.00031514,2]
[341752008,1731198639064,-425.24,0.00031531,2]
[341752010,1731198639073,-500.0,0.00031593,2]
[341752011,1731198639083,-1000.0,0.00031597,2]
[341752014,1731198639093,-709.96776489,0.00031597,2]
[341752016,1731198639102,-250.0,0.00031599,2]
[341752018,1731198639111,-179.6919726,0.00031599,2]
[341752020,1731198639120,-500.0,0.000316,36]
[341752021,1731198639129,-322.78014973,0.00031673,5]
[341752024,1731198639139,-500.0,0.00031673,5]
[341752025,1731198639148,-490.68344807,0.00031673,5]
[341752027,1731198639157,-500.0,0.00031673,5]
[341752029,1731198639166,-500.60418354,0.00031673,5]
[341752031,1731198639177,-501.4711944,0.00031673,5]
[341752033,1731198639186,-500.0,0.00031673,2]
[341752036,1731198639195,-500.0,0.00031673,5]
[341752038,1731198639204,-500.0,0.00031673,5]
[341752040,1731198639213,-13448.19012576,0.00031673,2]
[341752042,1731198639222,-529.0,0.00031682,2]
[341752043,1731198639231,-1130.0,0.00031682,2]
[341752045,1731198639240,-2392.0,0.00031682,2]
[341752048,1731198639249,-184.252,0.00031682,2]
[341752050,1731198639258,-500.0,0.00031683,2]
[341752051,1731198639267,-70071.29563841,0.0003169,2]
[341752052,1731198639276,-500.0,0.00031693,7]
[341752053,1731198639285,-500.0,0.00031693,2]
[341752055,1731198639294,-500.0,0.00031693,2]
[341752057,1731198639303,-3544.52,0.00031693,120]
[341752059,1731198639312,-152.500231,0.00031694,7]
[341752060,1731198639322,-151.0,0.00031694,7]
[341752061,1731198639331,-151.0,0.00031694,7]
[341752062,1731198639340,-151.0,0.00031694,7]
[341752064,1731198639349,-151.0,0.00031694,7]
[341752066,1731198639358,-151.888586,0.00031694,7]
[341752068,1731198639367,-153.052964,0.00031694,7]
[341752070,1731198639376,-151.0,0.00031694,7]
[341752071,1731198639385,-151.0,0.00031694,7]
[341752073,1731198639394,-151.0,0.00031694,7]
[341752075,1731198639403,-151.0,0.00031694,7]
[341752077,1731198639413,-200.24109776,0.00031694,7]
[341752079,1731198639423,-151.0,0.00031694,7]
[341752080,1731198639432,-2545.08520786,0.00031695,4]
[341752082,1731198639441,-239.91711,0.00031695,7]
[341752083,1731198639451,-500.0,0.00031695,2]
[341752084,1731198639460,-500.0,0.00031696,2]
[341752085,1731198639470,-500.0,0.00031696,2]
[341752086,1731198639479,-279.30613927,0.00031696,2]
[341752087,1731198639489,-311.87991382,0.00031696,2]
[341752088,1731198639499,-500.0,0.00031696,2]
[341752089,1731198639508,-500.0,0.00031696,2]
[341752090,1731198639518,-516.10776032,0.00031696,2]
[341752091,1731198639527,-375.61679673,0.00031696,2]
[341752092,1731198639536,-500.0,0.00031696,2]
[341752093,1731198639546,-202.12783023,0.00031696,2]
[341752094,1731198639555,-500.0,0.00031696,2]
[341752095,1731198639563,-500.0,0.00031696,2]
[341752096,1731198639573,-500.0,0.00031696,2]
[341752097,1731198639582,-500.0,0.00031696,2]
[341752098,1731198639591,-628.05563579,0.00031696,2]
[341752099,1731198639600,-500.0,0.00031696,2]
[341752100,1731198639610,-184.04010572,0.00031696,2]
[341752101,1731198639619,-278.828074,0.00031696,2]
[341752102,1731198639628,-174.6914127,0.00031696,2]
[341752103,1731198639638,-160.31132266,0.00031696,2]
[341752104,1731198639648,-500.0,0.00031696,2]
[341752105,1731198639657,-327.48649085,0.00031696,2]
[341752106,1731198639666,-671.8,0.00031696,2]
[341752107,1731198639680,-1000.0,0.00031696,7]
[341752108,1731198639690,-323.49889509,0.00031697,2]
[341752109,1731198639700,-343.37045171,0.00031697,2]
[341752110,1731198639709,-510.09809529,0.00031697,7]
[341752111,1731198639718,-510.09809529,0.00031697,7]
[341752112,1731198639728,-865373.52929025,0.00031697,10]
[341752113,1731198639743,-21762.96833706,0.00031697,10]
[341752149,1731198643789,-500.0,0.00031673,5]
[341752151,1731198643798,-1000.0,0.00031696,14]
[341752153,1731198643808,-27703.48809225,0.00031697,10]
[341752154,1731198643819,-670.57196835,0.00031697,10]
[341752226,1731199118825,166.447294,0.00013973,2]
[341752228,1731199472109,40528.0,0.0002,2]
[341752229,1731199475596,4081.09988669,0.00031697,30]
[341752230,1731199509711,607.63888889,0.00020844,2]
[341752231,1731199596108,-160.60243275,0.00021661,2]
[341752367,1731199837864,-5.84486125,0.00021661,2]
[341752368,1731199837884,-607.63888889,0.00023402,2]
[341752370,1731199837902,-206.86564133,0.000249,2]
[341752372,1731199837912,-300.0,0.00024999,2]
[341752373,1731199837921,-300.0,0.00024999,2]
[341752375,1731199837930,-469.09541958,0.00025,2]
[341752377,1731199837939,-166.0,0.00025,2]
[341752378,1731199837948,-163.0,0.00025,2]
[341752379,1731199837957,-159.0,0.00025,2]
[341752380,1731199837966,-40528.0,0.00025,7]
[341752381,1731199837974,-500.60418354,0.0002525,2]
[341752382,1731199837983,-500.0,0.0002525,2]
[341752383,1731199837992,-500.0,0.0002525,2]
[341752384,1731199838001,-500.0,0.0002525,2]
[341752385,1731199838010,-500.0,0.0002525,2]
[341752386,1731199838018,-500.0,0.0002525,2]
[341752387,1731199838027,-502.50620464,0.00025467,2]
[341752388,1731199838036,-322.78014973,0.00025467,2]
[341752389,1731199838046,-501.4711944,0.00025467,2]
[341752390,1731199838055,-163.0,0.0002589,2]
[341752391,1731199838066,-160.0,0.0002589,2]
[341752392,1731199838075,-156.55589766,0.0002635,2]
[341752393,1731199838084,-500.0,0.0002662,2]
[341752394,1731199838094,-1000.0,0.0002662,2]
[341752395,1731199838103,-1000.0,0.0002662,2]
[341752396,1731199838112,-1000.0,0.0002662,2]
[341752397,1731199838121,-1000.0,0.0002662,2]
[341752398,1731199838132,-420.0,0.00027082,2]
[341752399,1731199838141,-500.0,0.000271,2]
[341752400,1731199838150,-420.0,0.00027499,2]
[341752401,1731199838159,-166.666666,0.00027936,2]
[341752402,1731199838168,-227.302855,0.00028916,2]
[341752403,1731199838177,-732.87149401,0.00029125,5]
[341752404,1731199838186,-1500.0,0.00029125,2]
[341752405,1731199838195,-556.45184555,0.00029125,5]
[341752406,1731199838204,-1500.0,0.00029125,5]
[341752407,1731199838213,-174.161443,0.00029147,2]
[341752408,1731199838222,-2662.9153101,0.00029183,2]
[341752409,1731199838232,-483.0,0.00029339,2]
[341752410,1731199838242,-166.447294,0.00029349,2]
[341752411,1731199838251,-573.24996204,0.00029368,2]
[341752412,1731199838260,-227.302855,0.00029601,2]
[341752413,1731199838270,-40528.0,0.0003,14]
[341752414,1731199838279,-250.0,0.00030136,2]
[341752415,1731199838288,-500.0,0.00030136,2]
[341752416,1731199838297,-500.0,0.00030136,2]
[341752417,1731199838307,-366.0,0.00030249,2]
[341752418,1731199838316,-227.302855,0.00030286,2]
[341752419,1731199838325,-500.0,0.0003041,2]
[341752420,1731199838335,-500.0,0.0003041,2]
[341752421,1731199838344,-500.0,0.00030684,2]
[341752422,1731199838354,-500.0,0.00030958,2]
[341752423,1731199838364,-500.0,0.00031232,2]
[341752424,1731199838373,-62689.2217985,0.000313,2]
[341752425,1731199838389,-177.38,0.000315,31]
[341752426,1731199838400,-177.38,0.000315,31]
[341752427,1731199838410,-177.38,0.000315,31]
[341752428,1731199838419,-177.38,0.000315,31]
[341752429,1731199838428,-177.38,0.000315,31]
[341752430,1731199838438,-177.38,0.000315,31]
[341752431,1731199838448,-177.38,0.000315,31]
[341752432,1731199838457,-177.38,0.000315,31]
[341752433,1731199838467,-177.38,0.000315,31]
[341752434,1731199838476,-177.38,0.000315,31]
[341752435,1731199838486,-177.38,0.000315,31]
[341752436,1731199838495,-177.38,0.000315,31]
[341752437,1731199838505,-500.0,0.00031506,2]
[341752438,1731199838514,-1060.50001061,0.00031539,12]
[341752439,1731199838523,-156.458,0.0003154,2]
[341752440,1731199838533,-546.17,0.00031596,2]